bitfinex-derivatives/quotes_BTCF0:USTF0_20250327
["timestamp","ask_amount","ask_price","bid_price","bid_amount"]
[1743118672529,0.61843628,87334.0,87333.0,0.09771931]
[1743118672731,0.97923628,87334.0,87333.0,0.09867931]
[1743118672934,0.97923628,87334.0,87333.0,0.09771931]
[1743118676728,0.61843628,87334.0,87333.0,0.09771931]
[1743118676929,0.97923628,87334.0,87333.0,0.09871931]
[1743118677131,0.97923628,87334.0,87333.0,0.09771931]
[1743118678323,0.61843628,87334.0,87333.0,0.09771931]
[1743118678523,0.97923628,87334.0,87333.0,0.09867931]
[1743118678725,0.97923628,87334.0,87333.0,0.09771931]
[1743118682231,0.61843628,87334.0,87333.0,0.09771931]
[1743118682533,0.97923628,87334.0,87333.0,0.09867931]
[1743118682733,0.97923628,87334.0,87333.0,0.09771931]
[1743118687236,0.97934714,87334.0,87333.0,0.06751931]
[1743118691845,1.18492037,87334.0,87333.0,0.06751931]
[1743118695442,0.97934714,87334.0,87333.0,0.06751931]
[1743118698339,0.97934714,87334.0,87333.0,0.06743931]
[1743118698737,0.97934714,87334.0,87333.0,0.01017171]
[1743118699138,0.97934714,87334.0,87333.0,0.01117171]
[1743118699450,1.18492037,87334.0,87333.0,0.01017171]
[1743118700043,1.18492037,87334.0,87327.0,0.0889716]
[1743118700044,0.114552,87321.0,87308.0,0.0572843]
[1743118700248,0.84713753,87321.0,87320.0,0.27563505]
[1743118700632,0.91133753,87321.0,87320.0,0.27555505]
[1743118700836,1.02584112,87321.0,87320.0,0.27555505]
[1743118701042,1.02585982,87321.0,87320.0,0.27555505]
[1743118701244,1.02585982,87321.0,87320.0,0.27955505]
[1743118701944,1.38665982,87321.0,87320.0,0.27555505]
[1743118702149,1.38665982,87321.0,87320.0,0.27755505]
[1743118703543,1.38665982,87321.0,87314.0,8e-05]
[1743118703544,0.1145599,87315.0,87314.0,8e-05]
[1743118703748,0.1145625,87313.0,87310.0,8e-05]
[1743118703943,0.74760673,87313.0,87310.0,8e-05]
[1743118704140,0.80940673,87313.0,87310.0,8e-05]
[1743118704442,0.92393786,87313.0,87307.0,0.1145699]
[1743118704946,0.92393786,87313.0,87306.0,0.1146517]
[1743118705148,1.34163786,87313.0,87306.0,0.1146517]
[1743118705340,1.34126819,87313.0,87306.0,0.229223]
[1743118705545,1.34126819,87313.0,87307.0,0.1145696]
[1743118706045,1.34226819,87313.0,87312.0,0.00117171]
[1743118706439,1.70306819,87313.0,87312.0,0.00117171]
[1743118706845,1.70306819,87313.0,87312.0,0.00417171]
[1743118708269,1.7587548,87313.0,87312.0,0.00417171]
[1743118709767,0.1145704,87307.0,87306.0,8e-05]
[1743118709966,0.48433041,87307.0,87306.0,8e-05]
[1743118710165,0.54833041,87307.0,87306.0,8e-05]
[1743118710969,0.54933041,87307.0,87306.0,0.00308]
[1743118712573,0.54933041,87307.0,87306.0,0.1176517]
[1743118712775,0.55033041,87307.0,87306.0,0.1176517]
[1743118712974,0.91113041,87307.0,87306.0,0.00308]
[1743118713177,0.91113041,87307.0,87306.0,0.003]
[1743118716382,0.55033041,87307.0,87306.0,0.003]
[1743118716583,0.91113041,87307.0,87306.0,0.003]
[1743118717470,0.94123041,87307.0,87306.0,0.003]
[1743118721781,1.05576941,87307.0,87306.0,0.003]
[1743118723474,1.20391333,87307.0,87306.0,0.003]
[1743118725679,1.62161333,87307.0,87306.0,0.003]
[1743118726191,1.98241333,87307.0,87306.0,0.003]
[1743118726991,1.90152063,87307.0,87306.0,0.003]
[1743118727183,0.0572889,87302.0,87291.0,0.1145908]
[1743118727380,0.0572889,87302.0,87289.0,8e-05]
[1743118727381,0.4753809,87299.0,87298.0,0.11483401]
[1743118727690,0.7260609,87299.0,87298.0,0.11543401]
[1743118727994,0.7891609,87299.0,87298.0,0.11475401]
[1743118728382,0.7891609,87299.0,87298.0,0.11539401]
[1743118728590,0.7891609,87299.0,87298.0,0.14579401]
[1743118729089,0.7891609,87299.0,87298.0,0.17749401]
[1743118729285,0.80076271,87299.0,87298.0,0.17749401]
[1743118729790,0.80176271,87299.0,87298.0,0.17749401]
[1743118730687,0.80276271,87299.0,87298.0,0.17749401]
[1743118730879,0.80276271,87299.0,87298.0,0.06291181]
[1743118732077,0.85847387,87299.0,87298.0,0.06291181]
[1743118732278,0.85847387,87299.0,87298.0,0.06227181]
[1743118733790,0.85847387,87299.0,87298.0,0.06291181]
[1743118733991,0.85847387,87299.0,87298.0,0.17749401]
[1743118735196,0.85847387,87299.0,87298.0,0.06291181]
[1743118735382,0.85847387,87299.0,87298.0,0.06227181]
[1743118735587,0.88897387,87299.0,87298.0,0.00017181]
[1743118735988,0.88897387,87299.0,87298.0,0.00081181]
[1743118736689,0.88897387,87299.0,87298.0,0.00017181]
[1743118737091,1.00352337,87299.0,87298.0,0.00017181]
[1743118737393,0.1145901,87292.0,87291.0,0.1761914]
[1743118737586,0.87691463,87292.0,87291.0,0.1768314]
[1743118737788,0.93891463,87292.0,87291.0,0.1768314]
[1743118738693,0.60981463,87292.0,87291.0,0.1768314]
[1743118738892,0.97061463,87292.0,87291.0,0.03124]
[1743118739098,0.97061463,87292.0,87291.0,0.0632]
[1743118739298,0.97061463,87292.0,87291.0,0.0326]
[1743118739499,0.1145914,87291.0,87290.0,8e-05]
[1743118739698,0.3952714,87291.0,87290.0,8e-05]
[1743118739897,0.4594714,87291.0,87290.0,8e-05]
[1743118740813,0.114594,87289.0,87288.0,0.0326]
[1743118741094,0.39536466,87289.0,87288.0,0.0326]
[1743118741299,0.42626466,87289.0,87288.0,0.0326]
[1743118741497,0.42626466,87289.0,87288.0,0.03324]
[1743118742096,0.45846466,87289.0,87288.0,0.0647]
[1743118742997,1.18006466,87289.0,87288.0,0.06534]
[1743118743200,1.18006466,87289.0,87288.0,0.0647]
[1743118744406,1.23577582,87289.0,87288.0,0.0647]
[1743118745892,1.23577582,87289.0,87288.0,0.1792953]
[1743118747095,1.23577582,87289.0,87288.0,0.0647]
[1743118747799,1.23577582,87289.0,87288.0,0.1792953]
[1743118748003,1.23577582,87289.0,87288.0,0.0647]
[1743118749604,1.23577582,87289.0,87288.0,0.1792953]
[1743118750703,1.23574594,87289.0,87288.0,0.1792953]
[1743118751813,1.34494594,87289.0,87288.0,0.1792953]
[1743118752200,1.34494594,87289.0,87288.0,0.0647]
[1743118754804,0.62334594,87289.0,87288.0,0.0647]
[1743118755006,1.34494594,87289.0,87288.0,0.06534]
[1743118755200,1.34494594,87289.0,87288.0,0.0647]
[1743118755600,0.1145966,87287.0,87286.0,8e-05]
[1743118755800,0.36675505,87287.0,87286.0,8e-05]
[1743118755996,0.43015505,87287.0,87286.0,8e-05]
[1743118760215,0.1145993,87285.0,87284.0,0.0636]
[1743118760405,0.39675775,87285.0,87284.0,0.06368]
[1743118760600,0.45975775,87285.0,87284.0,0.06368]
[1743118764218,0.72059108,87285.0,87284.0,0.06368]
[1743118764803,0.1146071,87279.0,87265.0,0.0573124]
[1743118765014,0.4754111,87276.0,87275.0,0.1146898]
[1743118765213,0.75764954,87276.0,87275.0,0.03104]
[1743118765516,0.81874954,87276.0,87275.0,0.1450124]
[1743118765716,0.81874954,87276.0,87275.0,0.1456524]
[1743118766312,0.83104607,87276.0,87275.0,0.1456524]
[1743118766523,0.83111361,87276.0,87275.0,0.1782524]
[1743118767916,0.83111361,87276.0,87275.0,0.06364]
[1743118768116,0.83111361,87276.0,87275.0,0.1776124]
[1743118768409,0.83111361,87276.0,87275.0,0.1782524]
[1743118768410,0.83111594,87276.0,87275.0,0.1782524]
[1743118768609,0.83211594,87276.0,87275.0,0.1782524]
[1743118768830,0.8878271,87276.0,87275.0,0.1782524]
[1743118769012,0.8878271,87276.0,87275.0,0.1776124]
[1743118769323,0.5270271,87276.0,87275.0,0.1776124]
[1743118769508,1.2486271,87276.0,87275.0,0.1782524]
[1743118769712,1.2486271,87276.0,87275.0,0.1776124]
[1743118770422,1.24857662,87276.0,87275.0,0.1776124]
[1743118770812,0.52697662,87276.0,87275.0,0.1776124]
[1743118771012,1.24857662,87276.0,87275.0,0.1782524]
[1743118771310,1.24857662,87276.0,87275.0,0.1776124]
[1743118771714,0.52697662,87276.0,87275.0,0.1776124]
[1743118771916,1.24857662,87276.0,87275.0,0.1783324]
[1743118772112,1.24857662,87276.0,87275.0,0.1776124]
[1743118776419,1.24859889,87276.0,87275.0,0.1776124]
[1743118779230,1.24859889,87276.0,87275.0,0.2084124]
[1743118782231,0.52699889,87276.0,87275.0,0.2084124]
[1743118782421,0.52701312,87276.0,87275.0,0.2090524]
[1743118782720,1.24861312,87276.0,87275.0,0.2090524]
[1743118782917,1.24861312,87276.0,87275.0,0.2084124]
[1743118783327,0.52701312,87276.0,87275.0,0.2084124]
[1743118783516,1.24861312,87276.0,87275.0,0.2091324]
[1743118783724,1.24861312,87276.0,87275.0,0.2084124]
[1743118788835,1.24861312,87276.0,87275.0,0.0938]
[1743118789040,1.24861312,87276.0,87275.0,0.1450124]
[1743118790433,0.88781312,87276.0,87275.0,0.1146124]
[1743118791644,0.83210196,87276.0,87275.0,0.1146124]
[1743118794342,0.47130196,87276.0,87275.0,0.1146124]
[1743118794531,0.83210196,87276.0,87275.0,0.1146124]
[1743118794737,0.83210196,87276.0,87275.0,0.1152524]
[1743118795044,0.83210196,87276.0,87275.0,0.1146124]
[1743118795236,1.00311024,87276.0,87275.0,0.1146124]
[1743118795629,0.1146137,87274.0,87273.0,8e-05]
[1743118795840,0.1146216,87268.0,87267.0,0.00017181]
[1743118796138,0.84691593,87268.0,87267.0,0.00081181]
[1743118796442,0.94011593,87268.0,87267.0,0.00017181]
[1743118796642,0.94011858,87268.0,87267.0,0.00017181]
[1743118797242,0.82549698,87268.0,87265.0,8e-05]
[1743118797439,0.1146242,87266.0,87265.0,8e-05]
[1743118797640,0.39692118,87266.0,87265.0,8e-05]
[1743118797844,0.1146321,87260.0,87259.0,0.20591573]
[1743118798034,0.71704908,87260.0,87259.0,0.20663573]
[1743118798242,0.81436908,87260.0,87259.0,0.20663573]
[1743118799531,0.81436908,87260.0,87259.0,0.20599573]
[1743118799739,0.81436908,87260.0,87259.0,0.20655573]
[1743118799939,0.81536908,87260.0,87259.0,0.20655573]
[1743118800740,0.1146347,87258.0,87257.0,8e-05]
[1743118801048,0.48617168,87258.0,87257.0,0.00072]
[1743118801242,0.54757168,87258.0,87257.0,0.00072]
[1743118801449,0.54757168,87258.0,87257.0,8e-05]
[1743118801844,0.1146426,87252.0,87251.0,0.00011449]
[1743118802141,0.7060826,87252.0,87251.0,0.00075449]
[1743118802346,0.7991826,87252.0,87251.0,0.00075449]
[1743118803146,0.8107902,87252.0,87251.0,0.00075449]
[1743118803449,0.8127902,87252.0,87251.0,0.00075449]
[1743118803653,0.8127902,87252.0,87251.0,0.00011449]
[1743118803855,0.8127902,87252.0,87251.0,0.00075449]
[1743118804041,1.03936323,87252.0,87251.0,0.11539839]
[1743118804236,1.03936323,87252.0,87251.0,0.00011449]
[1743118804948,1.03936323,87252.0,87251.0,0.11475839]
[1743118807845,0.67856323,87252.0,87251.0,0.11475839]
[1743118808046,1.40016323,87252.0,87251.0,0.11475839]
[1743118808440,1.1735902,87252.0,87251.0,0.11475839]
[1743118810944,1.2829502,87252.0,87251.0,0.11475839]
[1743118811352,1.2829502,87252.0,87251.0,0.17915839]
[1743118814050,1.1418902,87252.0,87251.0,0.17915839]
[1743118814350,1.2513302,87252.0,87251.0,0.17915839]
[1743118815657,1.2513302,87252.0,87251.0,0.06451449]
[1743118816245,1.2513302,87252.0,87251.0,0.03181449]
[1743118816457,1.2840302,87252.0,87251.0,0.03181449]
[1743118817244,1.2840302,87252.0,87237.0,0.114655]
[1743118817245,0.0573314,87238.0,87237.0,0.114655]
[1743118817457,0.3868514,87238.0,87237.0,0.115295]
[1743118817649,0.38745141,87238.0,87237.0,0.114655]
[1743118817855,0.55945441,87238.0,87237.0,0.114655]
[1743118818054,0.55945441,87238.0,87237.0,0.115295]
[1743118818259,0.55945441,87238.0,87237.0,0.177755]
[1743118818442,0.55945441,87238.0,87237.0,0.209395]
[1743118818647,0.56045441,87238.0,87237.0,0.209395]
[1743118819359,0.56145441,87238.0,87237.0,0.209395]
[1743118819945,0.34145441,87238.0,87237.0,0.209395]
[1743118821048,0.35267353,87238.0,87237.0,0.209395]
[1743118822449,0.36144263,87238.0,87237.0,0.209395]
[1743118829853,0.35022351,87238.0,87237.0,0.209395]
[1743118830258,0.23555401,87238.0,87237.0,0.209395]
[1743118833068,0.3723497,87238.0,87237.0,0.209395]
[1743118838967,0.4623497,87238.0,87237.0,0.209395]
[1743118840557,0.4623497,87238.0,87237.0,0.148395]
[1743118840860,0.4623497,87238.0,87237.0,0.147755]
[1743118841061,0.4623497,87238.0,87237.0,0.180595]
[1743118841770,0.32555401,87238.0,87237.0,0.180595]
[1743118843161,0.32555401,87238.0,87237.0,0.115295]
[1743118843362,0.1146623,87237.0,87236.0,8e-05]
[1743118843566,0.26696231,87237.0,87236.0,8e-05]
[1743118844762,0.26696231,87237.0,87236.0,0.1147436]
[1743118845271,0.26796231,87237.0,87236.0,0.1147436]
[1743118845664,0.26796231,87237.0,87236.0,8e-05]
[1743118846670,0.26896231,87237.0,87236.0,8e-05]
[1743118847379,0.62976231,87237.0,87236.0,8e-05]
[1743118847770,0.62976231,87237.0,87236.0,0.1147436]
[1743118847972,0.62976231,87237.0,87236.0,8e-05]
[1743118848769,0.62976231,87237.0,87234.0,0.2293311]
[1743118848770,0.1146649,87235.0,87234.0,0.2293311]
[1743118848966,0.3753849,87235.0,87234.0,0.2299711]
[1743118849171,0.4712849,87235.0,87234.0,0.2299711]
[1743118849679,0.4712849,87235.0,87234.0,0.2300511]
[1743118849876,0.4722849,87235.0,87234.0,0.2300511]
[1743118850373,0.4722849,87235.0,87234.0,0.1153852]
[1743118850374,0.4732849,87235.0,87234.0,0.1153852]
[1743118850573,0.4732849,87235.0,87234.0,8e-05]
[1743118850767,0.0573378,87227.0,87222.0,0.094]
[1743118850967,0.5700768,87226.0,87225.0,0.32123253]
[1743118851164,0.7907968,87226.0,87225.0,0.32123253]
[1743118852479,0.80235823,87226.0,87225.0,0.00064]
[1743118852777,0.92856193,87226.0,87225.0,0.00064]
[1743118853378,0.92956193,87226.0,87225.0,0.00064]
[1743118854081,0.92949487,87226.0,87225.0,0.00064]
[1743118854578,0.9180036,87226.0,87225.0,0.00064]
[1743118855370,0.9180036,87226.0,87225.0,0.1153181]
[1743118856574,0.5572036,87226.0,87225.0,0.1153181]
[1743118856778,0.9180036,87226.0,87225.0,0.1153181]
[1743118857079,0.97376257,87226.0,87225.0,0.00064]
[1743118857279,0.1146781,87225.0,87224.0,0.1147594]
[1743118857479,0.37527811,87225.0,87224.0,8e-05]
[1743118857685,0.43657811,87225.0,87224.0,0.1147594]
[1743118859681,0.54585811,87225.0,87224.0,0.1777994]
[1743118859982,0.54685811,87225.0,87224.0,0.1771594]
[1743118860472,0.68334636,87225.0,87224.0,0.1771594]
[1743118860671,0.68334636,87225.0,87224.0,0.1778794]
[1743118863574,0.54685811,87225.0,87224.0,0.1778794]
[1743118863775,0.43757811,87225.0,87224.0,0.1778794]
[1743118863976,0.54685811,87225.0,87224.0,0.1778794]
[1743118865882,0.43757811,87225.0,87224.0,0.1778794]
[1743118866183,0.54685811,87225.0,87224.0,0.1778794]
[1743118867378,0.39445639,87225.0,87224.0,0.1778794]
[1743118867681,0.10395639,87225.0,87224.0,0.18943215]
[1743118870583,0.21863449,87225.0,87224.0,0.18943215]
[1743118871083,0.21863449,87225.0,87224.0,0.1778794]
[1743118871283,0.17887811,87225.0,87224.0,0.1778794]
[1743118871485,0.28887811,87225.0,87224.0,0.1778794]
[1743118875489,0.39123449,87225.0,87224.0,0.1778794]
[1743118878780,0.28887811,87225.0,87224.0,0.1778794]
[1743118882590,0.28887811,87225.0,87224.0,0.1154794]
[1743118882974,0.32097811,87225.0,87224.0,0.1154794]
[1743118883180,0.32097811,87225.0,87224.0,0.1153994]
[1743118885180,0.33233207,87225.0,87224.0,0.1153994]
[1743118900290,0.32097811,87225.0,87224.0,0.1153994]
[1743118900686,0.32097811,87225.0,87224.0,0.1473994]
[1743118900687,0.17348001,87225.0,87224.0,0.1473994]
[1743118900880,0.17348001,87225.0,87224.0,0.1794994]
[1743118901081,0.20500778,87232.0,87228.0,0.0573366]
[1743118901283,0.13978,87231.0,87230.0,0.1720072]
[1743118901490,0.14062,87231.0,87230.0,0.1728872]
[1743118901686,0.03134,87231.0,87230.0,0.1728872]
[1743118902293,0.06214,87231.0,87230.0,0.2034872]
[1743118904396,0.0613,87231.0,87230.0,0.2034872]
[1743118904692,0.06190001,87231.0,87230.0,0.2034872]
[1743118905496,0.0613,87231.0,87230.0,0.2034872]
[1743118905692,0.06218001,87231.0,87230.0,0.21477643]
[1743118906296,0.03168001,87231.0,87230.0,0.21477643]
[1743118906502,0.03140001,87231.0,87230.0,0.21477643]
[1743118907499,0.14607021,87231.0,87230.0,0.00088]
[1743118907698,0.37607021,87231.0,87230.0,0.00088]
[1743118907893,0.40677021,87231.0,87230.0,0.1155515]
[1743118911204,0.40677021,87231.0,87230.0,0.4763515]
[1743118918801,0.40677021,87231.0,87230.0,0.1155515]
[1743118919001,0.40677021,87231.0,87230.0,0.4763515]
[1743118920605,0.54365855,87231.0,87230.0,0.4763515]
[1743118924507,0.54365855,87231.0,87230.0,0.36168]
[1743118924710,0.54365855,87231.0,87230.0,0.00088]
[1743118924907,0.1146715,87230.0,87229.0,8e-05]
[1743118925107,0.34527151,87230.0,87229.0,8e-05]
[1743118925308,0.40977151,87230.0,87229.0,8e-05]
[1743118926297,0.42130002,87230.0,87229.0,8e-05]
[1743118926815,0.114682,87222.0,87221.0,0.3608]
[1743118927108,0.374682,87222.0,87221.0,0.36168]
[1743118927302,0.438922,87222.0,87221.0,0.36168]
[1743118928102,0.439922,87222.0,87221.0,0.36168]
[1743118928509,0.440922,87222.0,87221.0,0.36268]
[1743118929109,0.45234762,87222.0,87221.0,0.36268]
[1743118930702,0.45234762,87222.0,87221.0,0.42848]
[1743118932005,0.440922,87222.0,87221.0,0.5431633]
[1743118935917,0.440922,87222.0,87221.0,0.1823633]
[1743118945708,0.440922,87222.0,87221.0,0.06768]
[1743118945908,0.440922,87222.0,87221.0,0.1823633]
[1743118947516,0.440922,87222.0,87221.0,0.00188]
[1743118947818,0.439922,87222.0,87221.0,0.00188]
[1743118948210,0.438922,87222.0,87221.0,0.00188]
[1743118949012,0.440922,87222.0,87221.0,0.00088]
[1743118949213,0.45242644,87222.0,87221.0,0.00088]
[1743118949413,0.440922,87222.0,87221.0,0.00088]
[1743118951417,0.801722,87222.0,87221.0,0.00088]
[1743118951615,0.1146833,87221.0,87220.0,8e-05]
[1743118951815,0.1146833,87221.0,87218.0,8e-05]
[1743118951816,0.1146952,87212.0,87211.0,0.3291017]
[1743118952018,0.3746952,87212.0,87211.0,0.2152455]
[1743118952216,0.4910352,87212.0,87211.0,0.329942]
[1743118953128,0.4710352,87212.0,87211.0,0.329942]
[1743118953923,0.4710352,87212.0,87211.0,0.2152455]
[1743118954120,0.4710352,87212.0,87211.0,0.330942]
[1743118954622,0.4710352,87212.0,87211.0,0.12502627]
[1743118956627,0.4710352,87212.0,87211.0,0.15652627]
[1743118958038,0.1786352,87212.0,87211.0,0.15652627]
[1743118958348,0.1786352,87212.0,87211.0,0.18662627]
[1743118959142,0.1786352,87212.0,87211.0,0.54742627]
[1743118962439,0.28121383,87212.0,87211.0,0.54742627]
[1743118968147,0.10341863,87212.0,87211.0,0.54742627]
[1743118970852,0.00084,87212.0,87211.0,0.54742627]
[1743118971053,0.13680571,87214.0,87213.0,0.1146939]
[1743118971254,0.13680571,87214.0,87213.0,0.1155339]
[1743118971255,0.16904571,87214.0,87213.0,0.1155339]
[1743118971456,0.16904571,87214.0,87213.0,0.1802339]
[1743118972255,0.28373821,87214.0,87213.0,0.1812339]
[1743118972440,0.16904571,87214.0,87213.0,0.1812339]
[1743118973950,0.03224,87214.0,87213.0,0.1812339]
[1743118974353,0.03224,87214.0,87213.0,0.5420339]
[1743118975247,0.03224,87214.0,87213.0,0.5410339]
[1743118975447,0.03224,87214.0,87213.0,0.5420339]
[1743118975656,0.03224,87214.0,87213.0,0.55366256]
[1743118976156,0.03224,87214.0,87213.0,0.5420339]
[1743118982162,0.03224,87214.0,87213.0,0.1812339]
[1743118982361,0.06234,87214.0,87213.0,0.5420339]
[1743118984560,0.06234,87214.0,87213.0,0.4773339]
[1743118985255,0.32234,87214.0,87213.0,0.4773339]
[1743118985451,0.34234,87214.0,87213.0,0.4773339]
[1743118985656,0.06234,87214.0,87213.0,0.4773339]
[1743118985857,0.06234,87214.0,87213.0,0.4763339]
[1743118986057,0.06234,87214.0,87213.0,0.4773339]
[1743118986256,0.4670325,87214.0,87213.0,0.4773339]
[1743118986459,0.47847811,87214.0,87213.0,0.4773339]
[1743118989960,0.47847811,87214.0,87213.0,0.1165339]
[1743118990161,0.47847811,87214.0,87213.0,0.4773339]
[1743118997275,0.47847811,87214.0,87213.0,0.36264]
[1743118997471,0.47847811,87214.0,87213.0,0.00184]
[1743118997670,0.47847811,87214.0,87213.0,0.001]
[1743118998877,0.49011577,87214.0,87213.0,0.001]
[1743118999874,0.49011577,87214.0,87211.0,0.00848977]
[1743118999875,0.1146952,87212.0,87211.0,0.00848977]
[1743119000076,0.77773287,87212.0,87211.0,0.00848977]
[1743119000274,0.84103287,87212.0,87211.0,0.00848977]
[1743119000573,0.95569401,87212.0,87211.0,0.00848977]
[1743119002880,0.9556548,87212.0,87211.0,0.00848977]
[1743119004272,1.3733548,87212.0,87211.0,0.00848977]
[1743119006581,1.42911897,87212.0,87211.0,0.00848977]
[1743119007282,1.42911897,87212.0,87210.0,0.02251984]
[1743119007283,0.1146965,87211.0,87210.0,0.02251984]
[1743119007578,0.48617496,87211.0,87210.0,0.02251984]
[1743119007772,0.54977496,87211.0,87210.0,0.02251984]
[1743119007973,0.66443873,87211.0,87210.0,0.02251984]
[1743119008172,0.66443873,87211.0,87209.0,0.02405085]
[1743119008173,0.1146978,87210.0,87209.0,0.02405085]
[1743119008374,0.1146991,87209.0,87207.0,0.01662797]
[1743119008574,0.44969756,87209.0,87207.0,0.01662797]
[1743119008881,0.56436265,87209.0,87207.0,0.01662797]
[1743119009083,0.71431557,87209.0,87207.0,0.01662797]
[1743119009376,0.71431557,87209.0,87200.0,0.03823621]
[1743119009377,0.1147096,87201.0,87200.0,0.03823621]
[1743119009578,0.114711,87200.0,87198.0,0.0251838]
[1743119009770,0.46116238,87200.0,87199.0,0.01916674]
[1743119009971,0.46116238,87200.0,87199.0,0.01832674]
[1743119010180,0.5758301,87200.0,87199.0,0.01832674]
[1743119010381,0.0573561,87199.0,87195.0,0.01217062]
[1743119010679,0.0573578,87197.0,87193.0,0.01999486]
[1743119010868,0.4755189,87194.0,87193.0,0.02007486]
[1743119011069,0.75767028,87194.0,87193.0,0.02007486]
[1743119011783,0.87235575,87194.0,87193.0,0.02007486]
[1743119012175,0.88107035,87194.0,87193.0,0.02007486]
[1743119012881,0.88207035,87194.0,87193.0,0.02007486]
[1743119013274,0.1147202,87193.0,87192.0,0.01067081]
[1743119013476,0.1147399,87178.0,87177.0,0.20591573]
[1743119013683,1.2334399,87178.0,87177.0,0.20675573]
[1743119013882,1.3274399,87178.0,87177.0,0.20675573]
[1743119014077,1.44212734,87178.0,87177.0,0.20675573]
[1743119014985,0.97204734,87178.0,87177.0,0.20675573]
[1743119015280,0.1147452,87174.0,87171.0,8e-05]
[1743119015483,0.1147452,87174.0,87173.0,0.0006]
[1743119015484,0.41490521,87174.0,87173.0,0.0006]
[1743119015681,0.1147478,87172.0,87171.0,8e-05]
[1743119015878,0.0573732,87174.0,87173.0,0.1147465]
[1743119016179,0.12797321,87174.0,87173.0,0.1153465]
[1743119016979,0.12797321,87174.0,87173.0,0.1777465]
[1743119022794,0.12797321,87174.0,87173.0,0.1153465]
[1743119022997,0.12797321,87174.0,87173.0,0.2083465]
[1743119023403,0.19387321,87174.0,87173.0,0.0936]
[1743119023905,0.19387321,87174.0,87173.0,0.2083465]
[1743119030309,0.19387321,87174.0,87173.0,0.0936]
[1743119030612,0.19387321,87174.0,87173.0,0.093]
[1743119030804,0.19387321,87174.0,87173.0,0.09364]
[1743119031808,0.19387321,87174.0,87173.0,0.2083865]
[1743119032700,0.19387321,87174.0,87173.0,0.09364]
[1743119032900,0.19387321,87174.0,87173.0,0.093]
[1743119033098,0.19387321,87174.0,87173.0,0.09368]
[1743119034616,0.29607446,87174.0,87173.0,0.09368]
[1743119036213,0.29607446,87174.0,87173.0,0.2084265]
[1743119036610,0.29607446,87174.0,87173.0,0.09368]
[1743119037014,0.23017446,87174.0,87173.0,0.2084265]
[1743119037308,0.33949446,87174.0,87173.0,0.2084265]
[1743119038416,0.23017446,87174.0,87173.0,0.2084265]
[1743119038712,0.12797321,87174.0,87173.0,0.2084265]
[1743119039504,0.07060001,87174.0,87173.0,0.2084265]
[1743119039705,0.00060001,87174.0,87173.0,0.2084265]
[1743119039920,0.11534521,87174.0,87173.0,0.2084265]
[1743119040418,0.14794521,87174.0,87173.0,0.2084265]
[1743119042007,0.18014521,87174.0,87173.0,0.2084265]
[1743119042812,0.18014521,87174.0,87173.0,0.5692265]
[1743119043422,0.43014521,87174.0,87173.0,0.4762265]
[1743119043613,0.18014521,87174.0,87173.0,0.4762265]
[1743119043816,0.18014521,87174.0,87173.0,0.5378265]
[1743119044220,0.18014521,87174.0,87173.0,0.1770265]
[1743119047025,0.06540001,87174.0,87173.0,0.1770265]
[1743119047414,0.00060001,87174.0,87173.0,0.1770265]
[1743119048928,0.17033542,87179.0,87178.0,0.1147399]
[1743119049116,0.17033542,87179.0,87178.0,0.5389399]
[1743119049117,0.17097542,87179.0,87178.0,0.5389399]
[1743119049718,0.17097542,87179.0,87178.0,0.55022357]
[1743119050817,0.17097542,87179.0,87178.0,0.5389399]
[1743119052524,0.00064,87179.0,87178.0,0.5389399]
[1743119052927,0.03094,87179.0,87178.0,0.5389399]
[1743119059332,0.06324,87179.0,87178.0,0.5389399]
[1743119059729,0.0745974,87179.0,87178.0,0.4761399]
[1743119060335,0.06324,87179.0,87178.0,0.4761399]
[1743119060531,0.06324,87179.0,87178.0,0.5079399]
[1743119061925,0.06324,87179.0,87178.0,0.5406399]
[1743119064235,0.06324,87179.0,87178.0,0.4761399]
[1743119068645,0.1779786,87179.0,87178.0,0.4761399]
[1743119069046,0.1779786,87179.0,87178.0,0.5094399]
[1743119069238,0.06324,87179.0,87178.0,0.5094399]
[1743119070147,0.1779786,87179.0,87178.0,0.5094399]
[1743119073053,0.1779786,87179.0,87178.0,0.4761399]
[1743119076056,0.4579786,87179.0,87178.0,0.4761399]
[1743119076257,0.1779786,87179.0,87178.0,0.4761399]
[1743119078951,0.4579786,87179.0,87178.0,0.4761399]
[1743119079351,0.1779786,87179.0,87178.0,0.4761399]
[1743119079954,0.4679786,87179.0,87178.0,0.4761399]
[1743119080151,0.1779786,87179.0,87178.0,0.4761399]
[1743119084056,0.4279786,87179.0,87178.0,0.4761399]
[1743119085254,0.4279786,87179.0,87178.0,0.1153399]
[1743119085455,0.4279786,87179.0,87178.0,0.4761399]
[1743119087267,0.4279786,87179.0,87178.0,0.1153399]
[1743119087465,0.4279786,87179.0,87178.0,0.4761399]
[1743119088057,0.4179786,87179.0,87178.0,0.4761399]
[1743119088364,0.1779786,87179.0,87178.0,0.4761399]
[1743119090465,0.06324,87179.0,87178.0,0.4761399]
[1743119090666,0.1779786,87179.0,87178.0,0.5719399]
[1743119095464,0.4079786,87179.0,87178.0,0.5719399]
[1743119096070,0.4479786,87179.0,87178.0,0.5719399]
[1743119096782,0.1779786,87179.0,87178.0,0.5719399]
[1743119099874,0.06324,87179.0,87178.0,0.5719399]
[1743119100076,0.1779786,87179.0,87178.0,0.5719399]
[1743119103967,0.1779786,87179.0,87178.0,0.4761399]
[1743119104868,0.1879786,87179.0,87178.0,0.4761399]
[1743119107573,0.1879786,87179.0,87178.0,0.3614]
[1743119107773,0.1879786,87179.0,87178.0,0.0006]
[1743119107774,0.19965171,87179.0,87178.0,0.0006]
[1743119107968,0.1147399,87178.0,87177.0,8e-05]
[1743119108170,0.44029277,87178.0,87177.0,0.1148212]
[1743119108468,0.50359277,87178.0,87177.0,0.0006]
[1743119108669,0.1147412,87177.0,87176.0,0.114822]
[1743119108869,0.1147412,87177.0,87173.0,0.0573729]
[1743119108870,0.1721211,87174.0,87173.0,0.0573729]
[1743119109171,0.5420411,87174.0,87173.0,0.0006]
[1743119109967,0.5420411,87174.0,87173.0,0.1153465]
[1743119110368,0.5420411,87174.0,87173.0,0.0006]
[1743119111176,0.5420411,87174.0,87173.0,0.1153465]
[1743119111675,0.5420411,87174.0,87173.0,0.1791465]
[1743119111876,0.0580133,87174.0,87173.0,0.1791465]
[1743119112083,0.05797331,87174.0,87173.0,0.1791465]
[1743119112269,0.12077331,87174.0,87173.0,0.1791465]
[1743119113376,0.12077331,87174.0,87173.0,0.19070924]
[1743119113570,0.06340001,87174.0,87173.0,0.19070924]
[1743119113770,0.17814521,87174.0,87173.0,0.19070924]
[1743119113981,0.17814521,87174.0,87173.0,0.1791465]
[1743119115479,0.06340001,87174.0,87173.0,0.1791465]
[1743119115681,0.17814521,87174.0,87173.0,0.1791465]